Workbook

Sheet Лист1
A1: Школа | C1: МБОУ Бирикчульская СОШ | F1: Утвердил: | G1: должность | H1: директор МБОУ Бирикчульской СОШ
A2: Типовое примерное меню приготавливаемых блюд | G2: фамилия | H2: М.А. Черпаков
A3: Возрастная категория | E3: 7-11 лет | G3: дата | H3: 2 | I3: 9 | J3: 2025
H4: день | I4: месяц | J4: год
A5: Неделя | B5: День недели | C5: Прием пищи | D5: Раздел меню | E5: Блюда | F5: Вес блюда, г | G5: Белки | H5: Жиры | I5: Углеводы | J5: Калорийность | K5: № рецептуры | L5: Цена
A6: 1 | B6: 1 | C6: Завтрак | D6: гор.блюдо | E6: Каша "Дружба" | F6: 200 | G6: 4.90 | H6: 6.90 | I6: 24.60 | J6: 179.90 | K6: 54-06к-2020
E7: Сыр твердых сортов в нарезке | F7: 30 | G7: 7.00 | H7: 9.00 | I7: 0.00 | J7: 109.10 | K7: 54-1з-2020
D8: гор.напиток | E8: Чай с молоком и сахаром | F8: 200 | G8: 1.50 | H8: 1.40 | I8: 8.60 | J8: 52.90 | K8: 54-6гн-2020
D9: хлеб | E9: Хлеб в ассортименте | F9: 30.00 | G9: 2.30 | H9: 0.30 | I9: 11.50 | J9: 57.90 | K9: пром
D10: фрукты | E10: Яблоко | F10: 150 | G10: 0.60 | H10: 0.60 | I10: 13.50 | J10: 60.60 | K10: пром
D13: итого | F13: =SUM(F6:F12) -> 610 | G13: =SUM(G6:G12) -> 16.3 | H13: =SUM(H6:H12) -> 18.2 | I13: =SUM(I6:I12) -> 58.2 | J13: =SUM(J6:J12) -> 460.4
A14: =A6 -> 1 | B14: =B6 -> 1 | C14: Обед | D14: закуска
D15: 1 блюдо
D16: 2 блюдо
D17: гарнир
D18: напиток
D19: хлеб бел.
D20: хлеб черн.
D23: итого | F23: =SUM(F14:F22) -> 0 | G23: =SUM(G14:G22) -> 0 | H23: 0 | I23: 0 | J23: 0
A24: =A6 -> 1 | B24: =B6 -> 1 | C24: Итого за день: | F24: =F13+F23 -> 610 | G24: =G13+G23 -> 16.3 | H24: 18.2 | I24: 58.2 | J24: 460.4
A25: 1 | B25: 2 | C25: Завтрак | E25: Сыр твердых сортов в нарезке | F25: 30 | G25: 7 | H25: 9 | I25: 0 | J25: 109.1 | K25: 54-1з
D26: гор.блюдо | E26: Суп молочный с макаронными изделиям | F26: 200 | G26: 5.5 | H26: 4.5 | I26: 17.9 | J26: 134.2 | K26: 54-19к
D27: гор.напиток | E27: Кофейный напиток с молоком | F27: 200 | G27: 3.8 | H27: 3.5 | I27: 11.1 | J27: 90.8 | K27: 54-9гн-2020
D28: хлеб | E28: Хлеб в ассортименте | F28: 30 | G28: 2.3 | H28: 0.2 | I28: 14.8 | J28: 57.9 | K28: пром
E29: Масло сливочное | F29: 10 | G29: 0.1 | H29: 8.3 | I29: 0.1 | J29: 74.9 | K29: 53-19з-2020
D30: фрукты | E30: Яблоко | F30: 150 | G30: 0.6 | H30: 0.6 | I30: 13.4 | J30: 60.6 | K30: пром
D32: итого | F32: =SUM(F25:F31) -> 620 | G32: =SUM(G25:G31) -> 19.3 | H32: =SUM(H25:H31) -> 26.1 | I32: =SUM(I25:I31) -> 57.3 | J32: =SUM(J25:J31) -> 527.5
A33: =A25 -> 1 | B33: =B25 -> 2 | C33: Обед | D33: закуска
D34: 1 блюдо
D35: 2 блюдо
D36: гарнир
D37: напиток
D38: хлеб бел.
D39: хлеб черн.
D42: итого | F42: =SUM(F33:F41) -> 0 | G42: =SUM(G33:G41) -> 0 | H42: 0 | I42: 0 | J42: 0
A43: =A25 -> 1 | B43: =B25 -> 2 | C43: Итого за день: | F43: =F32+F42 -> 620 | G43: =G32+G42 -> 19.3 | H43: 26.1 | I43: 57.3 | J43: 527.5
A44: 1 | B44: 3 | C44: Завтрак | E44: Соус белый | F44: 50 | G44: 1.35 | H44: 2.1 | I44: 2.2 | J44: 32.8 | K44: 54-2соус-2020
D45: гор.блюдо | E45: Филе минтая | F45: 90 | G45: 15.9 | H45: 0.9 | I45: =-I450 -> 0 | J45: 72 | K45: 54-2р-2020
E46: Пюре картофельное | F46: 150 | G46: 3.1 | H46: 6 | I46: 19.7 | J46: 145.8 | K46: 54-10г-2020
D47: гор.напиток | E47: Какао со сгущеным молоком | F47: 200 | G47: 3.5 | H47: 3.4 | I47: 22.5 | J47: 134.1 | K47: 54-8гн-2020
D48: хлеб | E48: Хлеб в ассортименте | F48: 30 | G48: 2.3 | H48: 0.3 | I48: 11.5 | J48: 57.9 | K48: пром
E49: Огурец | F49: 60 | G49: 0.5 | H49: 0 | I49: 1.8 | J49: 9.1 | K49: пром
D50: фрукты
D51: итого | F51: =SUM(F44:F50) -> 580 | G51: =SUM(G44:G50) -> 26.65 | H51: =SUM(H44:H50) -> 12.7 | I51: =SUM(I44:I50) -> 57.7 | J51: =SUM(J44:J50) -> 451.7
A52: =A44 -> 1 | B52: =B44 -> 3 | C52: Обед | D52: закуска
D53: 1 блюдо
D54: 2 блюдо
D55: гарнир
D56: напиток
D57: хлеб бел.
D58: хлеб черн.
D61: итого | F61: =SUM(F52:F60) -> 0 | G61: =SUM(G52:G60) -> 0 | H61: 0 | I61: 0 | J61: 0
A62: =A44 -> 1 | B62: =B44 -> 3 | C62: Итого за день: | F62: =F51+F61 -> 580 | G62: =G51+G61 -> 26.65 | H62: 12.7 | I62: 57.7 | J62: 451.7
A63: 1 | B63: 4 | C63: Завтрак
D64: гор.блюдо | E64: Омлет с зеленым горошком | F64: 200 | G64: 12.8 | H64: 15.3 | I64: 6.5 | J64: 214.6 | K64: 54-2о-2020
D65: гор.напиток | E65: Кофейный напиток с молоком | F65: 200 | G65: 3.8 | H65: 3.5 | I65: 11.1 | J65: 90.8 | K65: 54-9гн-2020
E66: Масло сливочное | F66: 10 | G66: 0.1 | H66: 8.3 | I66: 0.1 | J66: 74.9 | K66: 53-19з-2020
D67: хлеб | E67: Хлеб в ассортименте | F67: 30 | G67: 2.3 | H67: 0.3 | I67: 11.5 | J67: 57.9 | K67: пром
D68: фрукты | E68: Яблоко | F68: 150 | G68: 0.6 | H68: 0.6 | I68: 13.5 | J68: 60.6 | K68: пром
D70: итого | F70: =SUM(F63:F69) -> 590 | G70: =SUM(G63:G69) -> 19.6 | H70: =SUM(H63:H69) -> 28 | I70: =SUM(I63:I69) -> 42.7 | J70: =SUM(J63:J69) -> 498.8
A71: =A63 -> 1 | B71: =B63 -> 4 | C71: Обед | D71: закуска
D72: 1 блюдо
D73: 2 блюдо
D74: гарнир
D75: напиток
D76: хлеб бел.
D77: хлеб черн.
D80: итого | F80: =SUM(F71:F79) -> 0 | G80: =SUM(G71:G79) -> 0 | H80: 0 | I80: 0 | J80: 0
A81: =A63 -> 1 | B81: =B63 -> 4 | C81: Итого за день: | F81: =F70+F80 -> 590 | G81: =G70+G80 -> 19.6 | H81: 28 | I81: 42.7 | J81: 498.8
A82: 1 | B82: 5 | C82: Завтрак
D83: гор.блюдо | E83: Каша жидкая молочная кукурузная | F83: 200 | G83: 5.8 | H83: 5.8 | I83: 33 | J83: 207.9 | K83: 54-1к
E84: Масло сливочное порциями | F84: 10 | G84: 0.1 | H84: 7.2 | I84: 0.1 | J84: 66.1 | K84: 53-19з
D85: гор.напиток | E85: Чай черный байховый с лимоном и сахаром | F85: 200 | G85: 0.3 | H85: 0 | I85: 6.7 | J85: 27.9 | K85: 54-3гн
D86: хлеб | E86: Хлеб в ассортименте | F86: 30 | G86: 2.3 | H86: 0.3 | I86: 14.8 | J86: 57.9 | K86: пром
E87: Сыр твердых сортов в нарезке | F87: 30 | G87: 7 | H87: 8.8 | I87: 0 | J87: 107.5 | K87: 54-1з
D88: фрукты | E88: Яблоко | F88: 150 | G88: 0.6 | H88: 0.6 | I88: 14.7 | J88: 60.6 | K88: пром
D89: итого | F89: =SUM(F82:F88) -> 620 | G89: =SUM(G82:G88) -> 16.1 | H89: =SUM(H82:H88) -> 22.7 | I89: =SUM(I82:I88) -> 69.3 | J89: =SUM(J82:J88) -> 527.9
A90: =A82 -> 1 | B90: =B82 -> 5 | C90: Обед | D90: закуска
D91: 1 блюдо
D92: 2 блюдо
D93: гарнир
D94: напиток
D95: хлеб бел.
D96: хлеб черн.
D99: итого | F99: =SUM(F90:F98) -> 0 | G99: =SUM(G90:G98) -> 0 | H99: 0 | I99: 0 | J99: 0
A100: =A82 -> 1 | B100: =B82 -> 5 | C100: Итого за день: | F100: =F89+F99 -> 620 | G100: =G89+G99 -> 16.1 | H100: 22.7 | I100: 69.3 | J100: 527.9
A101: 2 | B101: 1 | C101: Завтрак | E101: Яйцо вареное | F101: 40 | G101: 4.8 | H101: 4 | I101: 0.3 | J101: 56.6 | K101: 54-7к-2020
D102: гор.блюдо | E102: Котлета из курицы | F102: 100 | G102: 19.1 | H102: 4.3 | I102: 13.4 | J102: 168.6 | K102: пром
E103: Каша гречневая рассыпчатая | F103: 150 | G103: 8.3 | H103: 6.3 | I103: 36 | J103: 233.7 | K103: 54-4г
D104: гор.напиток | E104: Какао с молоком | F104: 200 | G104: 4.7 | H104: 3.5 | I104: 12.5 | J104: 100.4 | K104: 54-9хн-2020
D105: хлеб | E105: Хлеб в ассортименте | F105: 30 | G105: 2.3 | H105: 0.3 | I105: 11.5 | J105: 57.9 | K105: пром
E106: Соус молочный натуральный | F106: 50 | G106: 1.35 | H106: 2.1 | I106: 2.2 | J106: 32.8 | K106: 54-2соус-2020
D107: фрукты
D108: итого | F108: =SUM(F101:F107) -> 570 | G108: =SUM(G101:G107) -> 40.55 | H108: =SUM(H101:H107) -> 20.5 | I108: =SUM(I101:I107) -> 75.9 | J108: =SUM(J101:J107) -> 650
A109: =A101 -> 2 | B109: =B101 -> 1 | C109: Обед | D109: закуска
D110: 1 блюдо
D111: 2 блюдо
D112: гарнир
D113: напиток
D114: хлеб бел.
D115: хлеб черн.
D118: итого | F118: =SUM(F109:F117) -> 0 | G118: =SUM(G109:G117) -> 0 | H118: 0 | I118: 0 | J118: 0
A119: =A101 -> 2 | B119: =B101 -> 1 | C119: Итого за день: | F119: =F108+F118 -> 570 | G119: =G108+G118 -> 40.55 | H119: 20.5 | I119: 75.9 | J119: 650
A120: 2 | B120: 2 | C120: Завтрак | D120: гор.блюдо | E120: Омлет с морковью | F120: 150 | G120: 11.1 | H120: 15 | I120: 5.2 | J120: 201 | K120: 54-3о
E121: Масло сливочное порциями | F121: 10 | G121: 0.1 | H121: 7.2 | I121: 0.1 | J121: 66.1 | K121: 53-19з
D122: гор.напиток | E122: Какао с молоком сгущеным | F122: 200 | G122: 3.5 | H122: 3.4 | I122: 22.5 | J122: 134.1 | K122: 54-8гн-2020
D123: хлеб | E123: Хлеб в ассортименте | F123: 30 | G123: 2.3 | H123: 0.3 | I123: 11.5 | J123: 57.9 | K123: пром
D124: фрукты | E124: Яблоко | F124: 150 | G124: 0.6 | H124: 0.6 | I124: 14.7 | J124: 60.6 | K124: пром
D127: итого | F127: =SUM(F120:F126) -> 540 | G127: =SUM(G120:G126) -> 17.6 | H127: =SUM(H120:H126) -> 26.5 | I127: =SUM(I120:I126) -> 54 | J127: 519.7
A128: =A120 -> 2 | B128: =B120 -> 2 | C128: Обед | D128: закуска
D129: 1 блюдо
D130: 2 блюдо
D131: гарнир
D132: напиток
D133: хлеб бел.
D134: хлеб черн.
D137: итого | F137: =SUM(F128:F136) -> 0 | G137: =SUM(G128:G136) -> 0 | H137: 0 | I137: 0 | J137: 0
A138: =A120 -> 2 | B138: =B120 -> 2 | C138: Итого за день: | F138: =F127+F137 -> 540 | G138: =G127+G137 -> 17.6 | H138: 26.5 | I138: 54 | J138: 519.7
A139: 2 | B139: 3 | C139: Завтрак | E139: Соус красный основной | F139: 50 | G139: 1.65 | H139: 1.2 | I139: 4.45 | J139: 35.4 | K139: 54-3соус
D140: гор.блюдо | E140: Макароны отварные | F140: 150 | G140: 5.4 | H140: 4.9 | I140: 32.8 | J140: 196.8 | K140: 54-1г
E141: Тефтели | F141: 75 | G141: 10.8 | H141: 11 | I141: 6.13 | J141: 150.9 | K141: пром
D142: гор.напиток | E142: Кофейный напиток с молоком | F142: 200 | G142: 3.8 | H142: 3.5 | I142: 11.1 | J142: 90.8 | K142: 54-9гн-2020
D143: хлеб | E143: Хлеб в ассортименте | F143: 30 | G143: 2.3 | H143: 0.3 | I143: 11.5 | J143: 57.9 | K143: пром
E144: Огурец в нарезке | F144: 60 | G144: 0.5 | H144: 0 | I144: 1.8 | J144: 9.1 | K144: 54-2з
D145: фрукты
D146: итого | F146: =SUM(F139:F145) -> 565 | G146: =SUM(G139:G145) -> 24.45 | H146: 20.9 | I146: 67.78 | J146: 540.9
A147: =A139 -> 2 | B147: =B139 -> 3 | C147: Обед | D147: закуска
D148: 1 блюдо
D149: 2 блюдо
D150: гарнир
D151: напиток
D152: хлеб бел.
D153: хлеб черн.
D156: итого | F156: =SUM(F147:F155) -> 0 | G156: =SUM(G147:G155) -> 0 | H156: 0 | I156: 0 | J156: 0
A157: =A139 -> 2 | B157: =B139 -> 3 | C157: Итого за день: | F157: =F146+F156 -> 565 | G157: =G146+G156 -> 24.45 | H157: 20.9 | I157: 67.78 | J157: 540.9
A158: 2 | B158: 4 | C158: Завтрак
D159: гор.блюдо | E159: Каша вязкая молочная овсяная | F159: 200 | G159: 8.6 | H159: 11.3 | I159: 34.3 | J159: 272.90 | K159: 54-9к
D160: гор.напиток | E160: Чай черный с молоком | F160: 200 | G160: 2 | H160: 1.4 | I160: 8.6 | J160: 52.90 | K160: 54-6гн-2020
D161: хлеб | E161: Хлеб в ассортименте | F161: 30 | G161: 2.3 | H161: 0.3 | I161: 11.5 | J161: 57.9 | K161: пром
E162: Сыр твердых сортов в нарезке | F162: 30 | G162: 7 | H162: 8.8 | I162: 0 | J162: 107.5 | K162: 54-1з
D163: фрукты | E163: Яблоко | F163: 150 | G163: 0.6 | H163: 0.6 | I163: 14.7 | J163: 66.6 | K163: пром
D165: итого | F165: =SUM(F158:F164) -> 610 | G165: =SUM(G158:G164) -> 20 | H165: 22.4 | I165: 69.1 | J165: 557.8
A166: =A158 -> 2 | B166: =B158 -> 4 | C166: Обед | D166: закуска
D167: 1 блюдо
D168: 2 блюдо
D169: гарнир
D170: напиток
D171: хлеб бел.
D172: хлеб черн.
D175: итого | F175: =SUM(F166:F174) -> 0 | G175: =SUM(G166:G174) -> 0 | H175: 0 | I175: 0 | J175: 0
A176: =A158 -> 2 | B176: =B158 -> 4 | C176: Итого за день: | F176: =F165+F175 -> 610 | G176: =G165+G175 -> 20 | H176: 22.4 | I176: 69.1 | J176: 557.8
A177: 2 | B177: 5 | C177: Завтрак | D177: гор.блюдо | E177: Запеканка из творога | F177: 150 | G177: 29.7 | H177: 10.7 | I177: 21.7 | J177: 301.2 | K177: 54-1т
E178: Повидло | F178: 30 | G178: 0.1 | H178: 0 | I178: 19.5 | J178: 78.5 | K178: пром
D179: гор.напиток | E179: Чай черный байховый | F179: 200 | G179: 0.2 | H179: 0 | I179: 0.1 | J179: 1.4 | K179: 54-1гн
D180: хлеб | E180: Хлеб в ассортименте | F180: 30 | G180: 2.3 | H180: 0.3 | I180: 11.5 | J180: 57.9 | K180: пром
D183: фрукты | E183: Яблоко | F183: 150 | G183: 0.6 | H183: 0.6 | I183: 13.4 | J183: 60.6 | K183: пром
D184: итого | F184: =SUM(F177:F183) -> 560 | G184: =SUM(G177:G183) -> 32.9 | H184: =SUM(H177:H183) -> 11.6 | I184: =SUM(I177:I183) -> 66.2 | J184: =SUM(J177:J183) -> 499.6
A185: =A177 -> 2 | B185: =B177 -> 5 | C185: Обед | D185: закуска
D186: 1 блюдо
D187: 2 блюдо
D188: гарнир
D189: напиток
D190: хлеб бел.
D191: хлеб черн.
D194: итого | F194: =SUM(F185:F193) -> 0 | G194: =SUM(G185:G193) -> 0 | H194: 0 | I194: 0 | J194: 0
A195: =A177 -> 2 | B195: =B177 -> 5 | C195: Итого за день: | F195: =F184+F194 -> 560 | G195: =G184+G194 -> 32.9 | H195: 11.6 | I195: 66.2 | J195: 499.6
C196: Среднее значение за период: | F196: =(F24+F43+F62+F81+F100+F119+F138+F157+F176+F195)/(IF(F24=0,0,1)+IF(F43=0,0,1)+IF(F62=0,0,1)+IF(F81=0,0,1)+IF(F100=0,0,1)+IF(F119=0,0,1)+IF(F138=0,0,1)+IF(F157=0,0,1)+IF(F176=0,0,1)+IF(F195=0,0,1)) -> 586.5 | G196: =(G24+G43+G62+G81+G100+G119+G138+G157+G176+G195)/(IF(G24=0,0,1)+IF(G43=0,0,1)+IF(G62=0,0,1)+IF(G81=0,0,1)+IF(G100=0,0,1)+IF(G119=0,0,1)+IF(G138=0,0,1)+IF(G157=0,0,1)+IF(G176=0,0,1)+IF(G195=0,0,1)) -> 23.345 | H196: 20.96 | I196: 61.818 | J196: 523.43 | L196: =(L24+L43+L62+L81+L100+L119+L138+L157+L176+L195)/(IF(L24=0,0,1)+IF(L43=0,0,1)+IF(L62=0,0,1)+IF(L81=0,0,1)+IF(L100=0,0,1)+IF(L119=0,0,1)+IF(L138=0,0,1)+IF(L157=0,0,1)+IF(L176=0,0,1)+IF(L195=0,0,1)) -> 
